bitfinex/quotes_BTCUSD_20241223
["timestamp","ask_amount","ask_price","bid_price","bid_amount"]
[1734931754065,0.00024604,95712.0,95711.0,0.009]
[1734931754235,0.00024604,95712.0,95710.0,0.28976316]
[1734931754665,0.00024604,95712.0,95711.0,0.005]
[1734931754825,0.00024604,95712.0,95711.0,0.014]
[1734931755025,0.00024604,95712.0,95711.0,0.009]
[1734931755681,0.00024604,95712.0,95706.0,0.24386316]
[1734931755912,0.00024604,95712.0,95710.0,0.009]
[1734931756112,0.00024604,95712.0,95711.0,0.358962]
[1734931757536,0.00024604,95712.0,95711.0,0.45282516]
[1734931757679,0.00024604,95712.0,95711.0,0.45982516]
[1734931757889,0.00024604,95712.0,95711.0,0.45782516]
[1734931758093,0.00024604,95712.0,95711.0,0.363962]
[1734931758343,0.00024604,95712.0,95711.0,0.372962]
[1734931759200,0.00024604,95712.0,95711.0,0.51375674]
[1734931759621,0.00024604,95712.0,95711.0,0.50475674]
[1734931760378,0.00024604,95712.0,95711.0,0.59374375]
[1734931761018,0.00024604,95712.0,95711.0,0.59474375]
[1734931761172,0.00024604,95712.0,95711.0,0.59374375]
[1734931761376,0.00024604,95712.0,95711.0,0.59474375]
[1734931761577,0.00024604,95712.0,95711.0,0.59674375]
[1734931761775,0.00024604,95712.0,95711.0,0.67394375]
[1734931762200,0.00024604,95712.0,95711.0,0.439162]
[1734931762834,0.00024604,95712.0,95711.0,0.437162]
[1734931763006,0.00024604,95712.0,95711.0,0.482862]
[1734931763185,0.00024604,95712.0,95711.0,0.481862]
[1734931763566,0.00024604,95712.0,95711.0,0.483862]
[1734931764209,0.00024604,95712.0,95711.0,0.487862]
[1734931766283,0.00024604,95712.0,95711.0,0.485862]
[1734931766457,0.00024604,95712.0,95711.0,0.5871704]
[1734931766659,0.00024604,95712.0,95711.0,0.485862]
[1734931767256,0.00024604,95712.0,95711.0,1.008262]
[1734931767450,0.00024604,95712.0,95711.0,1.004262]
[1734931767652,0.00024604,95712.0,95711.0,1.006262]
[1734931767879,0.00024604,95712.0,95711.0,1.009262]
[1734931768072,0.00024604,95712.0,95711.0,1.004262]
[1734931768487,0.00024604,95712.0,95711.0,1.006262]
[1734931768669,0.00024604,95712.0,95711.0,1.004262]
[1734931769555,0.00024604,95712.0,95711.0,1.005262]
[1734931770633,0.00024604,95712.0,95711.0,1.1065704]
[1734931770808,0.00024604,95712.0,95711.0,1.1055704]
[1734931771005,0.00024604,95712.0,95711.0,1.1085704]
[1734931771210,0.00024604,95712.0,95711.0,1.1055704]
[1734931771940,0.00024604,95712.0,95711.0,1.004262]
[1734931772240,0.00024604,95712.0,95711.0,1.005262]
[1734931772987,0.00024604,95712.0,95711.0,1.23972322]
[1734931775473,0.00024604,95712.0,95711.0,1.34103162]
[1734931775794,0.00024604,95712.0,95711.0,1.47361931]
[1734931776004,0.00024604,95712.0,95711.0,1.37361931]
[1734931776881,0.00024604,95712.0,95711.0,1.13915809]
[1734931777089,0.00024604,95712.0,95711.0,1.14315809]
[1734931777427,0.00024604,95712.0,95711.0,1.14415809]
[1734931777629,0.00024604,95712.0,95711.0,1.42454615]
[1734931778455,0.00024604,95712.0,95711.0,1.52454615]
[1734931778651,0.00024604,95712.0,95711.0,1.51954615]
[1734931778821,0.00024604,95712.0,95711.0,1.13815809]
[1734931779026,0.00024604,95712.0,95711.0,1.23815809]
[1734931779318,0.00024604,95712.0,95711.0,1.13815809]
[1734931779529,0.00024604,95712.0,95711.0,1.23815809]
[1734931779723,0.00024604,95712.0,95711.0,1.24315809]
[1734931780024,0.00024604,95712.0,95711.0,1.14315809]
[1734931780872,0.00024604,95712.0,95711.0,1.13815809]
[1734931781934,0.00024604,95712.0,95711.0,1.41942688]
[1734931782968,0.00024604,95712.0,95711.0,1.13815809]
[1734931786242,0.00024604,95712.0,95711.0,1.24315809]
[1734931786465,0.00024604,95712.0,95711.0,1.13815809]
[1734931786614,0.00024604,95712.0,95711.0,1.41942688]
[1734931787298,0.00024604,95712.0,95711.0,1.14315809]
[1734931787682,0.00024604,95712.0,95711.0,1.13815809]
[1734931789310,0.00024604,95712.0,95711.0,1.41936696]
[1734931790077,0.00024604,95712.0,95711.0,1.16805856]
[1734931790280,0.00024604,95712.0,95711.0,0.80360887]
[1734931791149,0.00024604,95712.0,95711.0,0.75685256]
[1734931791567,0.00024604,95712.0,95711.0,0.90685256]
[1734931791774,0.00024604,95712.0,95711.0,0.91185256]
[1734931792096,0.00024604,95712.0,95711.0,0.6724]
[1734931793125,0.00024604,95712.0,95711.0,0.6744]
[1734931793643,0.00024604,95712.0,95711.0,0.6724]
[1734931793842,0.00224604,95712.0,95711.0,0.6724]
[1734931794522,0.00524604,95712.0,95711.0,0.6724]
[1734931794733,0.00524604,95712.0,95711.0,0.6744]
[1734931794936,0.00024604,95712.0,95711.0,0.6744]
[1734931795144,0.00424604,95712.0,95711.0,0.6744]
[1734931795342,0.00424604,95712.0,95711.0,0.90885256]
[1734931796152,0.00424604,95712.0,95711.0,0.6724]
[1734931796364,0.00624604,95712.0,95711.0,0.6724]
[1734931798693,0.27145444,95712.0,95711.0,0.5224]
[1734931799460,0.26945444,95712.0,95711.0,0.5224]
[1734931800010,0.26945444,95712.0,95711.0,0.6724]
[1734931800011,0.27145444,95712.0,95711.0,0.6724]
[1734931800611,0.26545444,95712.0,95711.0,0.6724]
[1734931800857,0.11824604,95712.0,95711.0,0.6764]
[1734931801558,0.22055444,95712.0,95711.0,0.5354]
[1734931801979,0.30095444,95712.0,95711.0,0.5354]
[1734931802380,0.44915444,95712.0,95711.0,0.5224]
[1734931802788,0.44915444,95712.0,95711.0,0.5264]
[1734931803162,0.44915444,95712.0,95711.0,0.5224]
[1734931803574,0.44915444,95712.0,95711.0,0.5234]
[1734931803797,0.45015444,95712.0,95711.0,0.5324]
[1734931804155,0.44915444,95712.0,95711.0,0.5234]
[1734931804532,0.44915444,95712.0,95711.0,0.5254]
[1734931806116,0.34915444,95712.0,95711.0,0.5254]
[1734931807070,0.29995444,95712.0,95711.0,0.4524]
[1734931807538,0.00024604,95712.0,95711.0,0.6024]
[1734931808246,0.09524604,95712.0,95711.0,0.6024]
[1734931808602,0.09524604,95712.0,95711.0,0.6014]
[1734931808805,0.00024604,95712.0,95711.0,0.5994]
[1734931809007,0.00124604,95712.0,95711.0,0.6104]
[1734931809727,0.00124604,95712.0,95711.0,0.6074]
[1734931809923,0.00124604,95712.0,95711.0,0.6094]
[1734931810152,0.00124604,95712.0,95711.0,0.6591]
[1734931810513,0.00124604,95712.0,95711.0,0.6571]
[1734931811282,0.00124604,95712.0,95711.0,0.7584084]
[1734931811451,0.00024604,95712.0,95711.0,0.7504084]
[1734931811865,0.00124604,95712.0,95711.0,0.7594084]
[1734931812177,0.00124604,95712.0,95711.0,0.7624084]
[1734931812590,0.00024604,95712.0,95711.0,0.7534084]
[1734931812927,0.00024604,95712.0,95711.0,0.7504084]
[1734931813347,0.00024604,95712.0,95711.0,0.7564084]
[1734931814083,0.00024604,95712.0,95711.0,0.7654084]
[1734931815878,0.00024604,95712.0,95711.0,0.85898637]
[1734931816081,0.00024604,95712.0,95711.0,1.03658637]
[1734931816693,0.00024604,95712.0,95711.0,1.04158637]
[1734931816894,0.00024604,95712.0,95711.0,1.03558637]
[1734931817097,0.00024604,95712.0,95711.0,1.07384931]
[1734931817463,0.00224604,95712.0,95711.0,1.07384931]
[1734931818441,0.00224604,95712.0,95711.0,0.9340084]
[1734931818625,0.00024604,95712.0,95711.0,0.9330084]
[1734931818929,0.00124604,95712.0,95711.0,0.9330084]
[1734931819735,6e-07,95732.0,95731.0,0.358918]
[1734931819910,6e-07,95732.0,95731.0,1.2790264]
[1734931820110,8.56e-05,95747.0,95746.0,0.208886]
[1734931820311,8.56e-05,95747.0,95746.0,0.5836944]
[1734931820559,0.00024619,95747.0,95746.0,0.5836944]
[1734931820747,0.00024619,95747.0,95746.0,0.6886944]
[1734931821344,0.00024619,95747.0,95746.0,1.2839044]
[1734931821518,1.9e-07,95747.0,95746.0,1.2839044]
[1734931822007,0.00200019,95747.0,95746.0,1.2839044]
[1734931822501,7.9e-07,95749.0,95748.0,0.3308]
[1734931822755,7.9e-07,95749.0,95748.0,1.0273084]
[1734931823316,2.5e-07,95754.0,95753.0,0.302]
[1734931823593,2.5e-07,95754.0,95753.0,1.0783884]
[1734931825953,2.5e-07,95754.0,95753.0,1.21813062]
[1734931826891,2.5e-07,95754.0,95753.0,1.0783884]
[1734931827311,2.5e-07,95754.0,95753.0,1.0793884]
[1734931827491,2.5e-07,95754.0,95753.0,1.0803884]
[1734931827694,2.5e-07,95754.0,95753.0,1.0793884]
[1734931828136,2.5e-07,95754.0,95753.0,1.0823884]
[1734931828455,2.5e-07,95754.0,95753.0,1.0793884]
[1734931828613,2.5e-07,95754.0,95753.0,1.0813884]
[1734931828824,2.5e-07,95754.0,95753.0,1.0823884]
[1734931829414,2.5e-07,95754.0,95753.0,1.0813884]
[1734931829622,2.5e-07,95754.0,95753.0,1.0823884]
[1734931830402,2.5e-07,95754.0,95753.0,1.1924884]
[1734931830772,2.5e-07,95754.0,95753.0,1.0793884]
[1734931830945,2.5e-07,95754.0,95753.0,1.0823884]
[1734931832324,2.5e-07,95754.0,95753.0,1.0813884]
[1734931832526,2.5e-07,95754.0,95753.0,1.0823884]
[1734931833578,2.5e-07,95754.0,95753.0,1.0783884]
[1734931834000,2.5e-07,95754.0,95753.0,1.0823884]
[1734931834215,2.5e-07,95754.0,95753.0,1.0783884]
[1734931834548,2.5e-07,95754.0,95753.0,1.0823884]
[1734931834754,2.5e-07,95754.0,95753.0,1.0833884]
[1734931837347,2.5e-07,95754.0,95753.0,1.0793884]
[1734931837729,2.5e-07,95754.0,95753.0,1.0823884]
[1734931837944,2.5e-07,95754.0,95753.0,1.0813884]
[1734931838141,2.5e-07,95754.0,95753.0,1.0823884]
[1734931838584,2.5e-07,95754.0,95753.0,1.0793884]
[1734931838736,2.5e-07,95754.0,95753.0,1.0813884]
[1734931839304,2.5e-07,95754.0,95753.0,1.0823884]
[1734931839739,2.5e-07,95754.0,95753.0,1.0813884]
[1734931840278,2.5e-07,95754.0,95753.0,1.0783884]
[1734931840602,2.5e-07,95754.0,95753.0,1.0813884]
[1734931840809,2.5e-07,95754.0,95753.0,1.0783884]
[1734931841215,2.5e-07,95754.0,95753.0,1.0823884]
[1734931841477,2.5e-07,95754.0,95753.0,1.0793884]
[1734931841671,2.5e-07,95754.0,95753.0,1.0813884]
[1734931842078,2.5e-07,95754.0,95753.0,1.0823884]
[1734931842732,2.5e-07,95754.0,95753.0,1.0813884]
[1734931843059,2.5e-07,95754.0,95753.0,1.0865654]
[1734931843257,2.5e-07,95754.0,95753.0,1.11584082]
[1734931843687,2.5e-07,95754.0,95753.0,1.11884082]
[1734931843911,2.5e-07,95754.0,95753.0,1.0835654]
[1734931844073,4.5e-07,95762.0,95761.0,0.563853]
[1734931844271,4.5e-07,95762.0,95761.0,1.3875914]
[1734931844473,4.5e-07,95762.0,95761.0,1.41986472]
[1734931844877,4.5e-07,95762.0,95761.0,1.3875914]
[1734931845486,4.5e-07,95762.0,95761.0,1.3825914]
[1734931845711,4.5e-07,95762.0,95761.0,1.3875914]
[1734931847259,4.5e-07,95762.0,95761.0,1.41990987]
[1734931848258,4.5e-07,95762.0,95761.0,1.42090987]
[1734931850560,4.5e-07,95762.0,95761.0,1.41990987]
[1734931850761,4.5e-07,95762.0,95761.0,1.42090987]
[1734931854842,6.5e-07,95773.0,95772.0,0.641729]
[1734931855041,6.5e-07,95773.0,95772.0,1.37042587]
[1734931855439,8.5e-07,95775.0,95774.0,0.255]
[1734931855660,8.5e-07,95775.0,95774.0,0.98368687]
[1734931857179,8.5e-07,95775.0,95774.0,0.88368687]
[1734931857402,8.5e-07,95775.0,95774.0,0.98368687]
[1734931857616,8.5e-07,95775.0,95774.0,0.87868687]
[1734931857818,8.5e-07,95775.0,95774.0,0.87968687]
[1734931858061,8.5e-07,95775.0,95774.0,0.87868687]
[1734931858801,8.5e-07,95775.0,95774.0,0.62737847]
[1734931858802,0.08280085,95775.0,95774.0,0.62737847]
[1734931859971,8.5e-07,95775.0,95774.0,0.87868687]
[1734931861395,8.5e-07,95775.0,95774.0,0.88968687]
[1734931861601,8.5e-07,95775.0,95774.0,0.87868687]
[1734931862162,8.5e-07,95775.0,95774.0,0.88368687]
[1734931863832,8.5e-07,95775.0,95774.0,0.87868687]
[1734931864006,8.5e-07,95775.0,95774.0,0.88368687]
[1734931864436,8.5e-07,95775.0,95774.0,0.98368687]
[1734931865703,5e-08,95789.0,95787.0,0.15]
[1734931865912,5e-08,95789.0,95788.0,0.28467062]
[1734931866121,0.00053558,95789.0,95788.0,0.87861687]
[1734931866689,5.8e-07,95789.0,95788.0,1.11579879]
[1734931866890,5.8e-07,95789.0,95788.0,1.21579879]
[1734931867127,5.8e-07,95789.0,95788.0,1.26359879]
[1734931867294,7.8e-07,95799.0,95797.0,0.1]
[1734931867493,0.23476039,95841.0,95797.0,0.1]
[1734931867494,0.0831,95828.0,95806.0,0.363755]
[1734931867688,0.11266052,95807.0,95806.0,1.12065979]
[1734931868099,0.11266052,95807.0,95806.0,1.14953314]
[1734931869354,0.09178552,95807.0,95806.0,1.14953314]
[1734931869587,0.09178552,95807.0,95806.0,1.24953314]
[1734931869588,0.07091052,95807.0,95806.0,1.24953314]
[1734931870042,0.07091052,95807.0,95806.0,1.22114522]
[1734931870258,0.07091052,95807.0,95806.0,1.19227187]
[1734931870462,0.00828552,95807.0,95806.0,1.27094522]
[1734931870663,0.00828552,95807.0,95806.0,1.32367187]
[1734931870664,5.2e-07,95807.0,95806.0,1.32367187]
[1734931871064,5.2e-07,95807.0,95806.0,1.5986458]
[1734931871310,5.2e-07,95807.0,95806.0,1.48972733]
[1734931871518,5.2e-07,95807.0,95806.0,1.33492733]
[1734931872047,5.2e-07,95807.0,95806.0,1.0549534]
[1734931872780,1.2e-07,95808.0,95807.0,0.3806]
[1734931872986,1.2e-07,95808.0,95807.0,1.17098661]
[1734931874281,1.2e-07,95808.0,95807.0,1.17398661]
[1734931874672,1.2e-07,95808.0,95807.0,1.17098661]
[1734931874809,1.2e-07,95808.0,95807.0,1.17398661]
[1734931875011,1.2e-07,95808.0,95807.0,1.17498661]
[1734931875235,1.2e-07,95808.0,95807.0,1.45170583]
[1734931875467,1.2e-07,95808.0,95807.0,1.45070583]
[1734931876744,1.2e-07,95808.0,95807.0,1.45370583]
[1734931877132,1.2e-07,95808.0,95807.0,1.17398661]
[1734931877309,1.2e-07,95808.0,95807.0,1.18198661]
[1734931878422,1.2e-07,95808.0,95807.0,1.14959627]
[1734931878871,1.2e-07,95808.0,95807.0,1.0877884]
[1734931879717,1.2e-07,95808.0,95807.0,0.93512426]
[1734931879916,1.2e-07,95808.0,95807.0,0.8571884]
[1734931880125,1.2e-07,95808.0,95807.0,0.8461884]
[1734931880319,1.2e-07,95808.0,95807.0,0.8571884]
[1734931880518,1.2e-07,95808.0,95807.0,0.8573596]
[1734931880719,1.2e-07,95808.0,95807.0,0.8493596]
[1734931880945,1.2e-07,95808.0,95807.0,0.6963596]
[1734931881144,1.2e-07,95808.0,95807.0,0.7003596]
[1734931881349,1.2e-07,95808.0,95807.0,0.6973596]
[1734931881704,1.2e-07,95808.0,95807.0,0.7013596]
[1734931882269,1.2e-07,95808.0,95807.0,0.7003596]
[1734931882446,1.2e-07,95808.0,95807.0,0.8503596]
[1734931883027,1.2e-07,95808.0,95807.0,0.8463596]
[1734931883223,1.2e-07,95808.0,95807.0,0.9395636]
[1734931883669,1.2e-07,95808.0,95807.0,0.9405636]
[1734931884070,1.2e-07,95808.0,95807.0,0.8473596]
[1734931884300,1.2e-07,95808.0,95807.0,0.8463596]
[1734931884751,0.07500012,95808.0,95807.0,0.5950512]
[1734931884993,0.12230012,95808.0,95807.0,0.5950512]
[1734931885239,0.22245442,95808.0,95807.0,0.5950512]
[1734931885745,0.21730012,95808.0,95807.0,0.5950512]
[1734931886456,0.34674996,95808.0,95807.0,0.5950512]
[1734931886690,0.22444996,95808.0,95807.0,0.3751512]
[1734931887139,0.22444996,95808.0,95807.0,0.3841512]
[1734931887503,0.32444996,95808.0,95807.0,0.3841512]
[1734931887714,0.42444996,95808.0,95807.0,0.3781512]
[1734931888115,0.42444996,95808.0,95807.0,0.3751512]
[1734931888339,0.42444996,95808.0,95807.0,0.3811512]
[1734931888580,0.42444996,95808.0,95807.0,0.3841512]
[1734931889542,0.42444996,95808.0,95807.0,0.3781512]
[1734931889928,0.41930852,95808.0,95807.0,0.3811512]
[1734931890353,0.42435357,95808.0,95807.0,0.3751512]
[1734931890791,0.42535357,95808.0,95807.0,0.3761512]
[1734931891897,0.42535357,95808.0,95807.0,0.3031512]
[1734931893164,0.23035357,95808.0,95807.0,0.3031512]
[1734931893294,0.22935357,95808.0,95807.0,0.3021512]
[1734931893497,0.22935357,95808.0,95807.0,0.3031512]
[1734931893498,0.23035357,95808.0,95807.0,0.3031512]
[1734931893924,0.42535357,95808.0,95807.0,0.3031512]
[1734931894419,0.22935357,95808.0,95807.0,0.3021512]
[1734931894824,0.23035357,95808.0,95807.0,0.3021512]
[1734931895169,0.22530852,95808.0,95807.0,0.3021512]
[1734931895379,0.42030852,95808.0,95807.0,0.3021512]
[1734931896977,0.42030852,95808.0,95807.0,0.2291512]
[1734931899801,0.41530852,95808.0,95807.0,0.2291512]
[1734931899969,0.22030852,95808.0,95807.0,0.2291512]
[1734931900375,0.41530852,95808.0,95807.0,0.2291512]
[1734931901181,0.41430852,95808.0,95807.0,0.2291512]
[1734931901517,0.22030852,95808.0,95807.0,0.2291512]
[1734931901698,0.41530852,95808.0,95807.0,0.2291512]
[1734931901944,0.41530852,95808.0,95807.0,0.1821512]
[1734931904430,0.22030852,95808.0,95807.0,0.1821512]
[1734931904598,0.22039412,95808.0,95807.0,0.1821512]
[1734931906890,0.22039412,95808.0,95807.0,0.1091512]
[1734931907532,0.41539412,95808.0,95807.0,0.1091512]
[1734931909356,0.56539412,95808.0,95807.0,0.0047762]
[1734931909568,0.56539412,95808.0,95807.0,2e-07]
[1734931910009,0.56539412,95808.0,95774.0,0.0001712]
[1734931910010,0.526822,95775.0,95774.0,0.0001712]
[1734931910180,0.6281304,95775.0,95774.0,0.00070673]
[1734931911299,0.6281304,95775.0,95774.0,0.00170673]
[1734931911516,0.6281304,95775.0,95741.0,0.0817]
[1734931911517,0.095,95754.0,95741.0,0.0817]
[1734931911709,0.6051764,95754.0,95753.0,0.00033152]
[1734931912092,0.6281764,95754.0,95753.0,0.00033152]
[1734931913446,0.6281764,95754.0,95753.0,0.00133152]
[1734931913774,0.6281764,95754.0,95753.0,0.00433152]
[1734931914602,0.3331764,95754.0,95753.0,0.00133152]
[1734931914807,0.5281764,95754.0,95753.0,0.00133152]
[1734931915009,0.3331764,95754.0,95753.0,0.00133152]
[1734931915303,0.3331764,95754.0,95753.0,0.00033152]
[1734931915501,0.4281764,95754.0,95753.0,0.00333152]
[1734931915657,0.4281764,95754.0,95753.0,0.00433152]
[1734931916183,0.4281764,95754.0,95753.0,0.00333152]
[1734931916337,0.4281764,95754.0,95753.0,0.00433152]
[1734931916541,0.5281764,95754.0,95753.0,0.00433152]
[1734931917090,0.5281764,95754.0,95753.0,0.00133152]
[1734931917647,0.5281764,95754.0,95753.0,0.00433152]
[1734931918141,0.6281764,95754.0,95753.0,0.00433152]
[1734931918864,0.6281764,95754.0,95753.0,0.00333152]
[1734931919269,0.6281764,95754.0,95753.0,0.00433152]
[1734931919695,0.6281764,95754.0,95753.0,0.00333152]
[1734931920093,0.6281764,95754.0,95753.0,0.00133152]
[1734931920499,0.6281764,95754.0,95753.0,0.00333152]
[1734931920697,0.6281764,95754.0,95753.0,0.00133152]
[1734931921377,0.6281764,95754.0,95753.0,0.00333152]
[1734931921679,0.6281764,95754.0,95753.0,0.00233152]
[1734931921915,0.303916,95732.0,95731.0,0.01103152]
[1734931922117,0.326916,95732.0,95731.0,0.01119211]
[1734931922670,0.118,95732.0,95731.0,0.01119211]
[1734931923085,0.118,95732.0,95731.0,0.01619211]
[1734931923498,0.119,95732.0,95731.0,0.02519211]
[1734931924842,0.096,95732.0,95731.0,0.02519211]
[1734931925763,0.096,95732.0,95731.0,0.07089211]
[1734931925962,0.001,95732.0,95731.0,0.07089211]
[1734931926282,0.001,95732.0,95731.0,0.07193655]
[1734931926504,0.208845,95765.0,95749.0,0.1282]
[1734931926666,0.12586951,95760.0,95749.0,0.1282]
[1734931926863,0.1013084,95759.0,95749.0,0.1282]
[1734931927226,0.12586951,95770.0,95751.0,0.15]
[1734931927386,0.1013084,95769.0,95759.0,0.0777]
[1734931927766,0.208838,95768.0,95759.0,0.0777]
[1734931927977,0.1013084,95767.0,95759.0,0.0777]
[1734931928765,0.208842,95766.0,95759.0,0.0777]
[1734931928940,0.3101504,95766.0,95759.0,0.0777]
[1734931929347,0.023,95765.0,95759.0,0.0787]
[1734931930315,0.023,95765.0,95759.0,0.0817]
[1734931930570,0.023,95765.0,95759.0,0.0787]
[1734931930804,0.023,95765.0,95759.0,0.0777]
[1734931930973,0.023,95765.0,95759.0,0.0817]
[1734931931180,0.023,95765.0,95759.0,0.0837]
[1734931931738,0.023,95765.0,95759.0,0.0817]
[1734931932066,0.023,95765.0,95759.0,0.0837]
[1734931933342,0.095,95760.0,95759.0,0.0837]
[1734931934206,0.208846,95764.0,95759.0,0.0777]
[1734931934409,0.023,95765.0,95759.0,0.0777]
[1734931934621,0.023,95765.0,95759.0,0.0817]
[1734931934813,0.023,95765.0,95759.0,0.0787]
[1734931935031,0.023,95765.0,95759.0,0.0777]
[1734931935191,0.023,95765.0,95759.0,0.0817]
[1734931936084,0.023,95765.0,95760.0,0.208855]
[1734931936281,0.208798,95787.0,95769.0,0.0468]
[1734931936491,0.095,95771.0,95770.0,0.227]
[1734931938182,0.095,95771.0,95770.0,0.237]
[1734931944718,0.2193084,95771.0,95770.0,0.01]
[1734931945700,0.4193084,95771.0,95770.0,0.01]
[1734931946493,0.4193084,95771.0,95736.0,0.0766]
[1734931946494,0.095,95737.0,95736.0,0.0766]
[1734931946713,0.118,95733.0,95732.0,0.0482]
[1734931948366,0.118,95733.0,95732.0,0.0572]
[1734931950113,0.118,95733.0,95732.0,0.0522]
[1734931950498,0.118,95733.0,95732.0,0.0482]
[1734931950698,0.119,95733.0,95732.0,0.0572]
[1734931950897,0.119,95733.0,95732.0,0.0612]
[1734931951095,0.118,95733.0,95732.0,0.0522]
[1734931951304,0.119,95733.0,95732.0,0.0612]
[1734931951506,0.44356639,95783.0,95767.0,0.208838]
[1734931951752,0.44356639,95783.0,95766.0,0.434142]
[1734931951753,0.045,95767.0,95766.0,0.434142]
[1734931951968,0.09390415,95775.0,95769.0,0.15]
[1734931952261,0.09390415,95775.0,95771.0,0.15]
[1734931952727,0.09390415,95775.0,95772.0,0.208829]
[1734931952898,0.09390415,95775.0,95772.0,0.358829]
[1734931953112,0.045,95773.0,95772.0,0.358829]
[1734931953540,0.208764,95802.0,95782.0,0.15]
[1734931953717,0.00053487,95797.0,95782.0,0.15]
[1734931953922,0.00053487,95797.0,95783.0,0.208804]
[1734931954087,0.00053487,95797.0,95785.0,0.2088]
[1734931954616,0.00053487,95797.0,95787.0,0.417591]
[1734931955019,0.00053487,95797.0,95788.0,0.1285]
[1734931957375,0.00053487,95797.0,95788.0,0.1305]
[1734931957570,0.00053487,95797.0,95788.0,0.1355]
[1734931959412,0.045,95789.0,95788.0,0.1355]
[1734931960164,0.045,95789.0,95788.0,0.1335]
[1734931960518,0.045,95789.0,95788.0,0.1325]
[1734931960849,0.045,95789.0,95788.0,0.1405]
[1734931961117,0.1693084,95789.0,95788.0,0.012]
[1734931962109,0.1693084,95789.0,95788.0,0.004]
[1734931962357,0.1693084,95789.0,95788.0,0.011]
[1734931963379,0.1693084,95789.0,95788.0,0.007]
[1734931963644,0.1693084,95789.0,95788.0,0.011]
[1734931963887,0.068,95789.0,95788.0,0.004]
[1734931964140,0.231794,95788.0,95777.0,0.15]
[1734931964642,0.023,95788.0,95777.0,0.15]
[1734931965094,8.56e-05,95789.0,95788.0,0.003]
[1734931965290,8.56e-05,95789.0,95788.0,0.011]
[1734931965552,8.56e-05,95789.0,95788.0,0.003]
[1734931966057,8.56e-05,95789.0,95788.0,0.0822]
[1734931966500,8.56e-05,95789.0,95788.0,0.0792]
[1734931967829,8.56e-05,95789.0,95788.0,0.0922]
[1734931968033,0.0450856,95789.0,95788.0,0.013]
[1734931968481,0.169394,95789.0,95788.0,0.013]
[1734931971212,8.56e-05,95789.0,95788.0,0.013]
[1734931972248,0.0450856,95789.0,95788.0,0.221794]
[1734931972415,8.56e-05,95789.0,95788.0,0.371794]
[1734931972785,0.0450856,95789.0,95788.0,0.371794]
[1734931973181,0.0450856,95789.0,95788.0,0.367794]
[1734931973399,0.0450856,95789.0,95788.0,0.358794]
[1734931973647,0.0450856,95789.0,95788.0,0.362794]
[1734931973858,0.0450856,95789.0,95788.0,0.371794]
[1734931975646,0.0450856,95789.0,95788.0,0.013]
[1734931981789,0.0450856,95789.0,95788.0,0.0887]
[1734931984051,8.56e-05,95789.0,95788.0,0.0887]
[1734931984273,8.56e-05,95789.0,95788.0,0.08974386]
[1734931985878,0.0450856,95789.0,95788.0,0.08974386]
[1734931986075,8.56e-05,95789.0,95788.0,0.0887]
[1734931986375,8.56e-05,95789.0,95788.0,0.08974386]
[1734931987707,0.0450856,95789.0,95788.0,0.08974386]
[1734931987912,0.0450856,95789.0,95788.0,0.013]
[1734931988730,0.0450856,95789.0,95788.0,0.221794]
[1734931988969,0.0450856,95789.0,95788.0,0.371794]
[1734931990152,8.56e-05,95789.0,95788.0,0.371794]
[1734931990350,0.0450856,95789.0,95788.0,0.371794]
[1734931990515,0.0450856,95789.0,95788.0,0.013]
[1734931990721,0.169394,95789.0,95788.0,0.013]
[1734931992986,0.164394,95789.0,95788.0,0.013]
[1734931994644,0.164394,95789.0,95788.0,0.004]
[1734931994816,0.164394,95789.0,95768.0,0.0756]
[1734931995022,0.023,95787.0,95768.0,0.0756]
[1734931995222,0.0400856,95769.0,95768.0,0.0756]
[1734931997313,0.0400856,95769.0,95768.0,0.0846]
[1734931998100,0.0400856,95769.0,95768.0,0.0896]
[1734931998524,0.0400856,95769.0,95768.0,0.014]
[1734931999422,0.164394,95769.0,95768.0,0.014]
[1734931999948,0.164394,95769.0,95768.0,0.005]
[1734932000379,0.164394,95769.0,95768.0,0.014]
[1734932000594,0.164394,95769.0,95768.0,0.005]
[1734932000922,0.164394,95769.0,95768.0,0.006]
[1734932001325,0.164394,95769.0,95768.0,0.011]
[1734932001771,0.1243084,95769.0,95768.0,0.006]
[1734932001975,0.0400856,95769.0,95768.0,0.006]
[1734932002193,0.023,95770.0,95768.0,0.009]
[1734932002894,0.023,95768.0,95751.0,0.15]
[1734932003031,0.0400856,95752.0,95751.0,0.15]
[1734932003476,0.023,95766.0,95751.0,0.15]
[1734932003680,0.023,95766.0,95751.0,0.358872]
[1734932003852,0.023,95768.0,95751.0,0.358872]
[1734932004052,0.023,95768.0,95751.0,0.15]
[1734932004301,0.09390415,95795.0,95769.0,0.2309]
[1734932004498,0.00012286,95779.0,95771.0,0.15]
[1734932005119,0.0400856,95772.0,95771.0,0.15]
[1734932005361,0.00012286,95779.0,95771.0,0.15]
[1734932005555,0.00012286,95779.0,95769.0,0.2309]
[1734932005980,0.00012286,95779.0,95770.0,0.417666]
[1734932006191,0.00012286,95779.0,95771.0,0.15]
[1734932006393,0.00012286,95779.0,95773.0,0.15]
[1734932007160,0.00112286,95779.0,95774.0,0.417648]
[1734932007352,0.00112286,95779.0,95777.0,0.15]
[1734932007587,0.00012286,95779.0,95777.0,0.15]
[1734932007760,0.00012286,95779.0,95776.0,0.28932]
[1734932007761,0.00012286,95779.0,95778.0,0.54166836]
[1734932007956,0.00012286,95779.0,95778.0,0.5892244]
[1734932009181,0.00012286,95779.0,95778.0,0.5952244]
[1734932009464,0.208716,95824.0,95788.0,0.487294]
[1734932009653,0.00062082,95789.0,95788.0,0.5886024]
[1734932010834,0.00062082,95789.0,95788.0,1.1105824]
[1734932013038,0.00062082,95789.0,95788.0,1.39030162]
[1734932013859,0.00062082,95789.0,95788.0,1.1105824]
[1734932019417,0.00062082,95789.0,95788.0,1.009274]
[1734932019992,0.00062082,95789.0,95788.0,0.961574]
[1734932021639,0.00062082,95789.0,95788.0,0.75278]
[1734932021920,0.00062082,95789.0,95788.0,0.67198]
[1734932022380,0.04070642,95789.0,95788.0,0.67198]
[1734932023099,0.04070642,95789.0,95788.0,0.67398]
[1734932023575,0.04070642,95789.0,95788.0,0.67998]
[1734932023775,0.04070642,95789.0,95788.0,0.67398]
[1734932024275,0.04537503,95789.0,95788.0,0.67698]
[1734932024494,0.04537503,95789.0,95788.0,0.67398]
[1734932024699,0.04070642,95789.0,95788.0,0.67598]
[1734932024900,0.04070642,95789.0,95788.0,0.67698]
[1734932025038,0.04532148,95789.0,95788.0,0.67298]
[1734932025245,0.04070642,95789.0,95788.0,0.67298]
[1734932025443,0.04070642,95789.0,95788.0,0.67198]
[1734932026443,0.04070642,95789.0,95788.0,0.67298]